Cogmind - Beta 15 @@@ ROGUE MODE // 2025.06.15 @ 18:23:42 Player: Pancakes Result: Destroyed by B-36 Bruiser with Hammer Performance ------------- Evolutions (2) 1000 Regions Visited (4) 800 Robots Destroyed (141) 705 Value Destroyed (4147) 4147 Prototype IDs (5) 100 Alien Tech Used (0) 0 Bonus (712) 712 TOTAL SCORE: 7464 Bonus ------- High Alert Combat Kills 123 Follower Combat Kills 589 Cogmind --------- Core Integrity 0/550 Matter 290/300 Energy 160/160 System Corruption 8% Temperature Hot (263) Movement Treading (160) Location -8/Storage Parts ------- > --- POWER (1) -------- Light Nuclear Core > --- PROPULSION (3) --- Light Treads Aluminum Leg > --- UTILITY (5) ------ Improved Heat Sink Improved Signal Interpreter Improved Targeting Computer Improved Light Armor Plating Hacking Suite > --- WEAPON (2) ------- Field Laser > --- INVENTORY (5) ---- Gauss Rifle Gauss Rifle Shock Maul Peak State ------------ > --- POWER ------------ Light Nuclear Core > --- PROPULSION ------- Light Treads Armored Treads Advanced Treads > --- UTILITY ---------- Advanced Heat Sink Improved Signal Interpreter Targeting Computer Improved Targeting Computer Hacking Suite > --- WEAPON ----------- Field Laser Shock Maul > --- INVENTORY -------- Improved Light Armor Plating Hacking Suite Field Laser Gauss Rifle Gauss Rifle [Rating: 34] Favorites ----------- Power Light Nuclear Core Engine Improved Ion Engine Power Core Light Nuclear Core Propulsion Aluminum Leg Treads Light Treads Leg Aluminum Leg Utility Improved Targeting Computer Device Heat Sink Storage Medium Storage Unit Processor Improved Targeting Computer Hackware Hacking Suite Protection Light Armor Plating Weapon Field Laser Energy Gun Field Laser Ballistic Gun Gauss Rifle Special Weapon Mining Laser Impact Weapon Shock Maul Build | -11 -10 -9 -8 -8 ------- Run | Yrd Mat Mat Mat Sto Slots Evolved 4 | . . 2 2 . Power . | . . . . . Propulsion 1 | . . 1 . . Utility 3 | . . 1 2 . Weapon . | . . . . . Parts Attached 86 | 5 9 29 28 15 Power 15 | 1 1 3 7 3 Engine 11 | 1 1 3 5 1 Core 4 | . . . 2 2 Reactor . | . . . . . Propulsion 27 | 2 2 9 10 4 Treads 11 | . . . 8 3 Leg 16 | 2 2 9 2 1 Wheel . | . . . . . Hover . | . . . . . Flight . | . . . . . Utility 22 | . 2 9 7 4 Device 9 | . 1 3 3 2 Storage 2 | . 1 1 . . Processor 4 | . . 2 2 . Hackware 2 | . . . 1 1 Protection 5 | . . 3 1 1 Artifact . | . . . . . Weapon 22 | 2 4 8 4 4 Energy Gun 18 | 2 4 7 4 1 Energy Cannon . | . . . . . Ballistic Gun 2 | . . . . 2 Ballistic Cannon . | . . . . . Launcher . | . . . . . Special Weapon 1 | . . 1 . . Impact Weapon 1 | . . . . 1 Slashing Weapon . | . . . . . Piercing Weapon . | . . . . . Special Melee Weapon . | . . . . . Unidentified Prototypes 2 | . . . 1 1 Parts Lost 30 | . 1 11 9 9 Power 6 | . 1 1 3 1 Propulsion 8 | . . 4 2 2 Utility 10 | . . 4 2 4 Weapon 6 | . . 2 2 2 Highest Loss Streak 4 | . 1 2 4 3 To Critical Strikes . | . . . . . Average Backups 5 | 2 7 5 4 4 Power . | 1 . . . . Propulsion . | . 3 1 . . Utility 1 | . . 1 1 1 Weapon 2 | . 3 2 2 2 Tool/Special . | . . . . . Unused Backups 10 | . 2 5 3 . Power . | . . . . . Propulsion 3 | . . 3 . . Utility 1 | . . . 1 . Weapon 6 | . 2 2 2 . Tool/Special . | . . . . . Average Slot Usage (%) 96 | . 87 94 97 98 Engine 6 | . 14 11 5 1 Core 3 | . . . 3 7 Treads 12 | . . . 16 26 Leg 14 | . 28 30 8 . Device 10 | . 6 9 12 8 Storage 1 | . 9 2 . . Processor 20 | . . 12 26 26 Hackware 3 | . . . 3 8 Protection 2 | . . 7 1 . Energy Gun 19 | . 28 20 17 17 Peak Build Rating 34 | 5 8 18 31 34 Average Rating 20 | 3 6 11 24 30 On Entrance 12 | . 5 8 18 31 Naked Turns . | . . . . . Heaviest Build 24 | 7 20 24 21 19 Greatest Support 62 | 20 20 33 62 62 Greatest Overweight (x) 1 | . . 1 1 . Average Overweight (x) . | . . . . . Largest Inventory Capacity 10 | 5 10 10 5 5 Average Capacity 5 | 5 8 6 5 5 Most Carried 10 | 5 10 10 5 5 Average Carried 5 | 2 7 5 4 4 Final Capacity 10 | 5 10 5 5 5 Final Carried 10 | 2 10 5 5 3 Class Distribution -------------------- 48% | Scavenger-Mutant 46% | Mutant 4% | Commander-Mutant Dominant Class ---------------- Mutant | -10/Materials Scavenger-Mutant | -9/Materials Mutant | -8/Materials Mutant | -8/Storage Resources | -11 -10 -9 -8 -8 ----------- Run | Yrd Mat Mat Mat Sto Matter Collected 1567 | 250 90 370 412 445 Remotely . | . . . . . Salvage Created 5774 | 96 543 1496 2210 1429 Parts 284 | 6 25 82 113 58 Haulers Intercepted 8 | . 1 1 4 2 Recyclers Shooed 8 | . 1 4 1 2 Parts Field Recycled . | . . . . . Retrieved Matter . | . . . . . Parts Self-Destructed . | . . . . . Prevented . | . . . . . Kills | -11 -10 -9 -8 -8 ------- Run | Yrd Mat Mat Mat Sto Combat Hostiles Destroyed 94 | . 13 32 30 19 Guns 88 | . 12 29 29 18 Cannons 2 | . . 2 . . AOE 1 | . . . 1 . Classes Destroyed 15 | 2 5 3 3 2 Worker 2 | . . 1 . 1 Builder 1 | . . . . 1 Tunneler 2 | 1 . . 1 . Hauler 8 | . 1 1 4 2 Recycler 12 | 1 . 2 6 3 Mechanic 2 | . . . 2 . Operator 9 | . 1 2 3 3 Watcher 11 | . 1 5 4 1 Swarmer 12 | . 3 6 3 . Cutter 2 | . . . 2 . Grunt 55 | . 10 17 14 14 Brawler 2 | . . . 1 1 Duelist 3 | . . 1 2 . Sentry 19 | . . 8 8 3 Demolisher 1 | . . . . 1 Best Kill Streak 6 | 2 5 4 4 6 Combat Bots Only 5 | . 4 3 3 5 Max Kills in Single Turn 2 | 1 1 2 2 2 Gunslinging 1 | . . . . 1 Exploded 1 | . . . 1 . Melee . | . . . . . Uniques/NPCs Destroyed . | . . . . . Combat | -11 -10 -9 -8 -8 -------- Run | Yrd Mat Mat Mat Sto Hostile Shots Fired 547 | . 70 168 152 157 Missed 143 | . 15 40 46 42 Hits 404 | . 55 128 106 115 Melee 24 | . . 4 10 10 Projectile 380 | . 55 124 96 105 AOE 4 | . . . . 4 Critical Strikes 15 | . 1 2 4 8 Damage Taken 6003 | . 614 1584 1675 2130 Core 1138 | . 189 372 186 391 Absorbed by Shields . | . . . . . Regen/Repaired (Parts) 266 | . . . 206 60 Core Remaining (%) 43 | 100 24 7 . . Volleys Fired 416 | 5 55 121 146 89 Largest 2 | 2 2 2 2 2 Hottest 163 | 80 100 150 163 126 Shots Fired 817 | 10 110 232 287 178 Gun 807 | 10 110 224 285 178 Cannon . | . . . . . Launcher . | . . . . . Special 10 | . . 8 2 . Kinetic 18 | . . . . 18 Thermal 799 | 10 110 232 287 160 Explosive . | . . . . . Electromagnetic . | . . . . . Robot Hit Streak 19 | 3 11 15 17 19 Robot Miss Streak 5 | 1 3 4 5 3 Penetration Max . | . . . . . Secondary Targets 8 | . 1 2 2 3 Max Gunslinging Chain 1 | . 1 1 1 1 Shots Hit Robots 560 | 7 69 157 190 137 Core Hits 248 | 3 32 75 84 54 Critical Kills . | . . . . . Critical Parts Destroyed . | . . . . . Critical Strikes 33 | . 3 16 8 6 Burn 33 | . 3 16 8 6 Melee Attacks 2 | . . . . 2 Impact 2 | . . . . 2 Slashing . | . . . . . Piercing . | . . . . . Sneak Attacks . | . . . . . Combat Hostiles . | . . . . . Follow-up Attacks . | . . . . . Damage Inflicted 8751 | 75 824 2123 3282 2447 Guns 8607 | 75 824 2027 3282 2399 Cannons . | . . . . . Explosions . | . . . . . Melee 46 | . . . . 46 Ramming 2 | . . . . 2 Kinetic 195 | . . . . 195 Thermal 8508 | 75 824 2123 3282 2204 Explosive . | . . . . . Electromagnetic . | . . . . . Impact 46 | . . . . 46 Slashing . | . . . . . Piercing . | . . . . . Highest Corruption 8 | . . 2 2 8 Average Corruption 2 | . . 2 2 2 Corruption Purged . | . . . . . Corruption Blocked . | . . . . . Effects 80 | . . 30 24 26 Message Errors 14 | . . 4 4 6 Matter Fused 24 | . . 6 8 10 Heat Flow Errors 6 | . . 2 3 1 Energy Discharges 8 | . . 5 2 1 Parts Rejected 2 | . . 1 . 1 Parts Fused 3 | . . 1 1 1 Data Loss (minor) 11 | . . 4 4 3 Data Loss (major) 7 | . . 4 . 3 Misfires 4 | . . 2 2 . Weapon Failures 1 | . . 1 . . Overload Shots . | . . . . . Overflow Damage . | . . . . . Projectiles . | . . . . . Explosions . | . . . . . Melee . | . . . . . Knockbacks . | . . . . . Impact . | . . . . . Kinetic . | . . . . . Secondary . | . . . . . Self-Inflicted Damage . | . . . . . Shots . | . . . . . Rammed 1 | . . . . 1 Targets Rammed 1 | . . . . 1 Kicked . | . . . . . Crushed . | . . . . . Highest Temperature 382 | 72 222 313 281 382 Average Temperature 78 | 33 60 96 66 104 Received Heat Transfer 2574 | . 297 621 648 1008 Effects 15 | . . 5 2 8 Shutdowns 2 | . . 1 . 1 Energy Bleed 3 | . . 1 1 1 Interference 8 | . . 3 1 4 Matter Decay 2 | . . . . 2 Siege Activations . | . . . . . Martial Activations . | . . . . . Shielding Activations . | . . . . . Robots Disrupted . | . . . . . Combat Hostiles . | . . . . . Robots Corrupted . | . . . . . Combat Hostiles . | . . . . . Parts Fried . | . . . . . Impact Corruptions . | . . . . . Robots Melted 3 | . 1 1 . 1 Combat Hostiles 3 | . 1 1 . 1 Parts Melted 56 | . 4 21 17 14 Heat Transferred 22812 | 175 2451 7304 7770 5112 Parts Sabotaged . | . . . . . Parts Stolen . | . . . . . Parts Stripped . | . . . . . Power Chain Reactions . | . . . . . Alert | -11 -10 -9 -8 -8 ------- Run | Yrd Mat Mat Mat Sto Maximum Alert Level 2 | . . 1 2 2 Low Security (%) 66 | 100 100 80 53 57 Level 1 23 | . . 19 41 10 Level 2 9 | . . . 5 32 Level 3 . | . . . . . Level 4 . | . . . . . Level 5 . | . . . . . High Security . | . . . . . Max Security . | . . . . . Peak Influence 529 | 5 146 291 418 529 Initial 112 | . . 44 112 109 Average 141 | 1 47 102 160 201 Influence Increases 3522 | 10 369 933 980 1230 Destroy 0b10 Robot/C 2220 | . 260 640 600 720 Destroy 0b10 Robot/NC 235 | 10 15 55 100 55 Destroy Leader 618 | . 64 172 176 206 Allied During Kill 208 | . . . . 208 Successful Hack 14 | . . . 7 7 Disable Machine 120 | . . 30 60 30 Destroy Structure 17 | . . 6 7 4 Lose Combat Pursuer 90 | . 30 30 30 . Influence Decreases 3023 | 10 264 771 988 990 Entered New Map 366 | . . 61 155 150 Time Decay 1884 | 10 254 600 600 420 Lost Part 293 | . 10 110 83 90 Lost Ally 180 | . . . . 180 Purge Threat 300 | . . . 150 150 Squads Dispatched 18 | . 3 3 4 8 Investigation 4 | . 1 . . 3 Extermination . | . . . . . Reinforcement 11 | . 2 3 3 3 Assault 1 | . . . . 1 Garrison 2 | . . . 1 1 Intercept . | . . . . . Searches Triggered . | . . . . . Construction Impeded . | . . . . . Haulers Reinforced . | . . . . . Active Scanning Responses . | . . . . . Cargo Convoy Interrupts . | . . . . . Stealth | -11 -10 -9 -8 -8 --------- Run | Yrd Mat Mat Mat Sto Distress Signals 11 | . . 2 6 3 Communications Jammed . | . . . . . Distress Signals . | . . . . . Times Spotted 169 | . 21 48 53 47 Peak Tracking Total 6 | . 4 4 6 5 Tactical Retreats 5 | . 2 2 1 . Traps | -11 -10 -9 -8 -8 ------- Run | Yrd Mat Mat Mat Sto Traps Triggered 4 | . 1 2 1 . Indirectly . | . . . . . Trap Hack Attempts . | . . . . . Triggered . | . . . . . Disarmed 6 | . . . . 6 Reprogrammed . | . . . . . Reused . | . . . . . Traps Extracted . | . . . . . Installed . | . . . . . Triggered . | . . . . . Machines | -11 -10 -9 -8 -8 ---------- Run | Yrd Mat Mat Mat Sto Machines Disabled 8 | . . 2 4 2 Max in Single Turn 1 | . . 1 1 1 Garrison Access 2 | . . . 1 1 Machines Repaired . | . . . . . Machines Dismantled . | . . . . . Machines Sabotaged . | . . . . . Overloaded Fab Kills . | . . . . . Hacking | -11 -10 -9 -8 -8 --------- Run | Yrd Mat Mat Mat Sto Machines Accessed 15 | . . . 6 9 Terminals 8 | . . . 4 4 Fabricators . | . . . . . Repair Stations 3 | . . . 1 2 Recycling Units 2 | . . . . 2 Scanalyzers . | . . . . . Garrison Access 2 | . . . 1 1 Total Hacks 37 | . . . 16 21 Successful 25 | . . . 11 14 Failed 12 | . . . 5 7 Catastrophic 1 | . . . . 1 Database Lockouts . | . . . . . Manual 7 | . . . 3 4 Terminals 19 | . . . 8 11 Fabricators . | . . . . . Repair Stations 12 | . . . 6 6 Recycling Units 2 | . . . . 2 Scanalyzers . | . . . . . Garrison Access 4 | . . . 2 2 Terminal Hacks 12 | . . . 4 8 Prototype ID Bank 2 | . . . 2 . Open Door 2 | . . . . 2 Alert Level 3 | . . . 1 2 Unreport Threat 2 | . . . 1 1 Locate Traps 1 | . . . . 1 Disarm Traps 1 | . . . . 1 Recall Investigation 1 | . . . . 1 Fabricator Hacks . | . . . . . Repair Station Hacks 9 | . . . 6 3 Scan Component 5 | . . . 3 2 Repair 4 | . . . 3 1 Recycling Unit Hacks 2 | . . . . 2 Report Inventory 2 | . . . . 2 Scanalyzer . | . . . . . Garrison Access Hacks 2 | . . . 1 1 Seal Access 2 | . . . 1 1 Unauthorized Hacks . | . . . . . Terminals . | . . . . . Fabricators . | . . . . . Repair Stations . | . . . . . Recycling Units . | . . . . . Scanalyzers . | . . . . . Garrison Access . | . . . . . Data Cores Recovered 2 | . . . 1 1 Used . | . . . . . Hacking Detections 4 | . . . . 4 Full Trace Events 3 | . . . . 3 Feedback Events 1 | . . . . 1 Corruption 1 | . . . . 1 Feedback Blocked . | . . . . . Robot Schematics Acquired . | . . . . . Robots Built . | . . . . . Authchips . | . . . . . Time . | . . . . . Total Robot Build Rating . | . . . . . Part Schematics Acquired . | . . . . . Parts Built . | . . . . . Authchips . | . . . . . Time . | . . . . . Total Part Build Rating . | . . . . . Parts Repaired 4 | . . . 3 1 Time 128 | . . . 90 38 Parts Recycled . | . . . . . Recycled Matter . | . . . . . Retrieved Matter . | . . . . . Retrieved Components . | . . . . . Parts Scanalyzed . | . . . . . Part Schematics Acquired . | . . . . . Parts Damaged . | . . . . . Bothacking | -11 -10 -9 -8 -8 ------------ Run | Yrd Mat Mat Mat Sto Used RIF Installer . | . . . . . Robots Hacked . | . . . . . Non-combat . | . . . . . Combat . | . . . . . Robot Hacks Applied . | . . . . . Relay Couplers Released . | . . . . . Fabnet Peak Effective % . | . . . . . Robots Rewired . | . . . . . Allies Hacked . | . . . . . Hacks Repelled . | . . . . . Allies | -11 -10 -9 -8 -8 -------- Run | Yrd Mat Mat Mat Sto Total Allies 10 | . . . . 10 Largest Group 10 | . . . . 10 Highest-Rated Group 173 | . . . . 173 Highest-Rated Ally 29 | . . . . 29 Total Orders 4 | . . . . 4 ROAM 1 | . . . . 1 FOLLOW 3 | . . . . 3 Ally Attacks 122 | . . . . 122 Total Damage 1754 | . . . . 1754 Kills 18 | . . . . 18 Allies Corrupted . | . . . . . Allies Melted . | . . . . . Intel | -11 -10 -9 -8 -8 ------- Run | Yrd Mat Mat Mat Sto Active Infowar (turns) 1421 | . . . 1421 . Sensors 1421 | . . . 1421 . Robot Analysis Total . | . . . . . Derelict Logs Recovered . | . . . . . Drone Launches . | . . . . . Drone Recoveries . | . . . . . Exploration | -11 -10 -9 -8 -8 ------------- Run | Yrd Mat Mat Mat Sto Turns Passed 9269 | 69 926 2511 3615 2148 Spaces Moved 4061 | 41 368 1303 1651 698 Core 9 | 9 . . . . Treads 1684 | . . . 986 698 Legs 2368 | 32 368 1303 665 . Wheels . | . . . . . Hover . | . . . . . Flight . | . . . . . Fastest Speed 50 | 50 120 120 120 158 Average Speed 138 | 104 120 125 146 158 Slowest Speed 190 | 120 120 190 190 163 Overloaded Moves . | . . . . . Propulsion Burnouts . | . . . . . Robots Hopped . | . . . . . Potential Cave-ins . | . . . . . Cave-ins Triggered . | . . . . . Exploration Rate (%) 53 | 3 45 71 75 71 Regions Visited 4 Branch Regions 1 Pre-discovered Areas . | . . . . . Known Exits Taken 2 | . . 1 1 . Unknown Exits Taken 2 | 1 1 . . . Scrap Searched . | . . . . . Spaces Dug 1 | . . . 1 . Terrain Destroyed 3 | . . 2 1 . Melee . | . . . . . Projectile 3 | . . 2 1 . AOE . | . . . . . Terrain Rammed . | . . . . . Walls Destroyed . | . . . . . Machines Disabled . | . . . . . Actions | -11 -10 -9 -8 -8 --------- Run | Yrd Mat Mat Mat Sto Total 6856 | 57 746 1940 2566 1547 Wait 2150 | . 294 442 692 722 Move 4057 | 40 367 1302 1650 698 Hop . | . . . . . Pick Up 60 | 7 13 20 16 4 Fast Attach 23 | . 2 3 12 6 Attach 35 | 5 1 16 8 5 Detach 2 | . . 2 . . Swap 56 | . 6 16 19 15 Drop 54 | . 8 18 23 5 Fire 416 | 5 55 121 146 89 Melee 2 | . . . . 2 Ram . | . . . . . Kick . | . . . . . Crush 1 | . . . . 1 Escape Stasis . | . . . . . Rewire . | . . . . . Trap . | . . . . . Miscellaneous . | . . . . . Route ------- -11/Scrapyard -10/Materials -9/Materials -8/Materials (discovered 2 exits: *Fac / *Sto) -8/Storage (discovered 1 exit: *Fac) History --------- Turn | Location | Event 17 | -11/Scrapyard | Discovered new exit (range 16) 70 | -11/Scrapyard | Entered Materials 303 | -10/Materials | Build established: Mutant 563 | -10/Materials | Discovered new exit (range 16) 933 | -10/Materials | Core integrity fell below 50% 991 | -10/Materials | Build established: Scavenger-Mutant 996 | -10/Materials | Entered another Materials area 996 | -9/Materials | Evolved 2 slots: Propulsion x1, Utility x1 2762 | -9/Materials | Core integrity fell below 50% 2882 | -9/Materials | Discovered new exit (range 5) 2939 | -9/Materials | Identified exit to Materials 3018 | -9/Materials | Core integrity fell below 20% 3507 | -9/Materials | Entered another Materials area 3507 | -8/Materials | Evolved 2 slots: Utility x2 3714 | -8/Materials | Discovered new exit (range 4) 3717 | -8/Materials | Identified exit to Storage 3864 | -8/Materials | Build established: Mutant 4608 | -8/Materials | Lost 4 parts (2p2n) 5292 | -8/Materials | Build established: Scavenger-Mutant 5308 | -8/Materials | Garrison activated, responded to threat 6111 | -8/Materials | Discovered new exit (range 5) 6155 | -8/Materials | Identified exit to Factory 6523 | -8/Materials | Repaired Field Laser 6551 | -8/Materials | Repaired Lgt. Treads 6578 | -8/Materials | Repaired Lgt. Treads 7003 | -8/Materials | Build established: Mutant 7122 | -8/Materials | Entered Storage 8117 | -8/Storage | Assisted by bots powering up and referring to "LRC-V3" 8406 | -8/Storage | Build established: Commander-Mutant 8430 | -8/Storage | Lost 5 allies 8481 | -8/Storage | Garrison activated, responded to threat 8840 | -8/Storage | Discovered exit to Factory (range 11) 8921 | -8/Storage | Core integrity fell below 50% 9045 | -8/Storage | Repaired Field Laser 9122 | -8/Storage | First assault squad dispatched 9169 | -8/Storage | Core integrity fell below 20% 9172 | -8/Storage | Lost 3 parts (1n2u) 9270 | -8/Storage | Destroyed by B-36 Bruiser with Hammer Last Messages --------------- R-06 Scavenger collects Aluminum Leg. K-01 Serf collects debris. R-06 Scavenger collects Particle Gun. K-01 Serf collects debris. G-47 Trooper overheating. G-47 Trooper heat damages Aluminum Leg, Imp. Heat Sink, Particle Gun. K-01 Serf collects debris. G-47 Trooper overheating. K-01 Serf collects debris. R-06 Scavenger collects Rnf. Ion Engine. K-01 Serf collects debris. System corrupted: Substantial component data lost. Lgt. Treads destroyed. System corrupted by crushing effect (+2). K-01 Serf collects debris. Critical hit (Burn: +37). Field Laser destroyed. System corrupted by crushing effect (+3). Map ----- +----------------------------------------------------+ | ?????????????????????????????????#######+### # | | ?????????????????????????????????# % # + | | ?????????????????????????????????# # # | | ?????????????????????????????????# # # | | ?????????????????????????????????#=! + + | | ????????????????????????????????##%""" """ # # | | ????????????????????????????????#[!""" """ # # | | ????????????????????????????????## """ """ # # | | ?????????????????????????????????# # ### | | ?????????????????????????????????##"Y"###### #?? | | ??????????????????????????????????#"""#????# #?? | | ??????????????????????????????????#####????# #?? | | ???????????????????????????????????????????# #?? | | ??????????????????????#####????????????????# #?? | | ??????????????????????#"""#????????????????# #?? | | ??????????????????????#"R"#????????????????# #?? | | ???????????????????####" "####??????######## #?? | | ???????????????????# #????? # #?? | | ???????????????????# "" ##????# """ # #?? | | ???????????????????# ! " ####?# """ # #?? | | ???????????????????# "" """#??# """ # ### | | ???????????????????# k "#??# !%! + # | | ???????????????????# "" %"""#??# """ ^# # | | ????????????????# # ""k####??# """ # # | | ????????????????+ + "b" #?????# """ # + | | ????????????????# # %g@b #?????? # # | | ????????????????# ####+###/#???????######## # " | | ???????????????# ###"### #??????????????# # " | | ???????????? ################ # " | | ???????????? =[/%[% %=[=!## ### | | ????????????#+## #### ########%=""""""!# ## | | ???????????????????????#+#??????#=%"????" # | | ????????????????????????????????#= "????" / T | | ????????????????????????????????# """""" # | | ????????????????????????????????# # ## | | ????????????????????????????????# #######? | | ????????????????????????????????# #??????? | | ????????????????????????????????###########??????? | | | | | | | | | | | | | | | | | | | | | | | | | +----------------------------------------------------+ Best States ------------- Heat Dissipation 50 Energy Generation 14 Energy Capacity 400 Matter Stores 300 Matter Capacity 300 Sight Range 16 Robot Scan Range 15 Terrain Scan Density 10 Armor Coverage 150 Evasion (%) 55 Targeting Accuracy 11 Recoil Reduction 3 Offensive Hacking 10 Item Schematics ----------------- None Robot Schematics ------------------ None Fabricated ------------ Nothing Repaired ---------- Field Laser | 18% | -8/Materials Lgt. Treads | 49% | -8/Materials Lgt. Treads | 50% | -8/Materials Field Laser | 25% | -8/Storage Alien Tech Used ----------------- None Achievements -------------- Close Call I Spy The More The Merrier Challenges ------------ None Game ------ Seed SpreadFortressCompressor Manual? 0 Play Time 01:31:32 Cumulative 12.6 hours Start 2025.06.15 @ 15:51:37 End 2025.06.15 @ 18:23:42 Sessions 3 Manual Loads 0 Difficulty Rogue Special Mode None Game No. 15 Rogue 15 Adventurer 0 Explorer 0 Win Type - Total 0 Types 0/0/0/0/0/0/0/0/0/0 Lore% 8 Gallery% 12 Achievement% 12 Wizard Run 0 Options --------- Layout 1 ASCII 0 Keyboard 0 Movement Mouse Keybinds 0 Fullscreen 1 Font 32/SmallcapsGlow Map View 50x35 Zoom Use 0% Tactical HUD 0 Map Filters NONE Filters NONE Steam 1 RUN: 524778dc-e945-4321-9345-fd12d33637e1